fUSD/lending_fUSD_20250202
["ID","MTS","AMOUNT","RATE_DAILY","PERIOD"]
[351245490,1738471862237,-500.0,0.00016438,2]
[351245491,1738471862247,-3564.06,0.00016438,2]
[351245492,1738471862256,-151.0,0.00016438,2]
[351245493,1738471862266,-500.0,0.00016438,2]
[351245494,1738471862277,-1092.06,0.00016438,2]
[351245495,1738471862287,-500.0,0.00016438,2]
[351245496,1738471862296,-151.0,0.00016438,2]
[351245497,1738471862306,-151.0,0.00016438,2]
[351245498,1738471862316,-1450.39,0.00016438,2]
[351245499,1738471862326,-208.12455065,0.00016438,2]
[351245500,1738471862336,-500.0,0.00016438,2]
[351245501,1738471862347,-767.33,0.00016438,2]
[351245502,1738471862357,-316.67818281,0.00016438,2]
[351245503,1738471862368,-782.78,0.00016438,2]
[351245504,1738471862378,-151.0,0.00016438,2]
[351245505,1738471862389,-151.0,0.00016438,2]
[351245506,1738471862399,-512.16667971,0.00016438,2]
[351245507,1738471862409,-500.0,0.00016438,2]
[351245508,1738471862419,-151.0,0.00016438,2]
[351245509,1738471862429,-523.24908231,0.00016438,2]
[351245510,1738471862440,-151.0,0.00016438,2]
[351245511,1738471862450,-500.0,0.00016438,2]
[351245512,1738471862465,-500.0,0.00016438,2]
[351245513,1738471862475,-500.0,0.00016438,2]
[351245514,1738471862486,-501.2443354,0.00016438,2]
[351245515,1738471862496,-500.0,0.00016438,2]
[351245516,1738471862509,-605.29,0.00016438,2]
[351245517,1738471862521,-500.0,0.00016438,2]
[351245518,1738471862535,-500.0,0.00016438,2]
[351245519,1738471862545,-500.0,0.00016438,2]
[351245520,1738471862555,-6159.25,0.00016438,2]
[351245521,1738471862567,-1956.99,0.00016438,2]
[351245522,1738471862577,-1221.9,0.00016438,2]
[351245523,1738471862587,-500.0,0.00016438,2]
[351245524,1738471862600,-1198.83,0.00016438,2]
[351245525,1738471862610,-3898.93,0.00016438,2]
[351245526,1738471862621,-1963.528854,0.00016438,2]
[351245527,1738471862631,-500.0,0.00016438,2]
[351245528,1738471862641,-1395.44,0.00016438,2]
[351245529,1738471862651,-1251.57,0.00016438,2]
[351245530,1738471862660,-500.0,0.00016438,7]
[351245531,1738471862670,-1963.528854,0.00016438,2]
[351245532,1738471862680,-500.0,0.00016438,2]
[351245533,1738471862690,-500.0,0.00016438,2]
[351245534,1738471862700,-1963.528854,0.00016438,2]
[351245535,1738471862711,-500.0,0.00016438,2]
[351245536,1738471862720,-789.42,0.00016438,2]
[351245537,1738471862730,-1963.528854,0.00016438,2]
[351245538,1738471862740,-500.0,0.00016438,2]
[351245539,1738471862750,-2568.38,0.00016438,2]
[351245540,1738471862759,-500.0,0.00016438,2]
[351245541,1738471862769,-500.0,0.00016438,2]
[351245542,1738471862778,-500.0,0.00016438,2]
[351245543,1738471862788,-532.17,0.00016438,2]
[351245544,1738471862798,-1963.528854,0.00016438,2]
[351245545,1738471862807,-1963.528854,0.00016438,2]
[351245546,1738471862817,-500.0,0.00016438,2]
[351245547,1738471862827,-500.0,0.00016438,2]
[351245548,1738471862995,-500.0,0.00016438,2]
[351245549,1738471863005,-1963.528854,0.00016438,2]
[351245550,1738471863015,-500.0,0.00016438,2]
[351245551,1738471863025,-1963.528854,0.00016438,2]
[351245552,1738471863038,-3730.22,0.00016438,2]
[351245553,1738471863048,-500.0,0.00016438,2]
[351245554,1738471863059,-500.0,0.00016438,2]
[351245555,1738471863069,-500.0,0.00016438,2]
[351245556,1738471863080,-2285.14,0.00016438,2]
[351245557,1738471863090,-500.0,0.00016438,2]
[351245558,1738471863100,-983.68,0.00016438,2]
[351245559,1738471863110,-500.0,0.00016438,2]
[351245560,1738471863121,-534.88102579,0.00016438,2]
[351245561,1738471863131,-1830.6,0.00016438,2]
[351245562,1738471863141,-500.0,0.00016438,2]
[351245563,1738471863151,-500.0,0.00016438,2]
[351245564,1738471863161,-500.0,0.00016438,2]
[351245565,1738471863171,-500.0,0.00016438,2]
[351245566,1738471863180,-500.0,0.00016438,2]
[351245567,1738471863191,-500.0,0.00016438,2]
[351245568,1738471863202,-500.0,0.00016438,2]
[351245569,1738471863216,-1811.16,0.00016438,2]
[351245570,1738471863226,-500.0,0.00016438,2]
[351245571,1738471863237,-500.0,0.00016438,2]
[351245572,1738471863247,-305.96127995,0.00016438,2]
[351245573,1738471863916,-194.03872005,0.00016438,2]
[351245574,1738471863926,-520.52162502,0.00016438,2]
[351245575,1738471863936,-500.0,0.00016438,2]
[351245576,1738471863946,-1384.09,0.00016438,2]
[351245577,1738471863956,-500.0,0.00016438,2]
[351245578,1738471863968,-502.57885516,0.00016438,2]
[351245579,1738471863978,-500.0,0.00016438,2]
[351245580,1738471863988,-500.0,0.00016438,2]
[351245581,1738471863998,-151.0,0.00016438,2]
[351245582,1738471864008,-181.94460548,0.00016438,2]
[351245583,1738471864058,-318.05539452,0.00016438,2]
[351245584,1738471864067,-460.78487989,0.00016438,2]
[351245585,1738471864079,-39.21512011,0.00016438,2]
[351245586,1738471864089,-151.0,0.00016438,2]
[351245587,1738471864099,-96.73487988,0.00016438,2]
[351245588,1738471864143,-400.122648,0.00016438,2]
[351245589,1738471864670,-3.14247212,0.00016438,2]
[351245590,1738471864680,-151.0,0.00016438,2]
[351245591,1738471864690,-200.59559048,0.00016438,2]
[351245592,1738471888070,500.0,0.0001452,2]
[351245593,1738471896374,430.42,0.00013552,2]
[351245594,1738471968279,55.85,0.0001589,7]
[351245595,1738471978203,11059.74398807,0.00023,120]
[351245598,1738472236491,153.66,0.00016658,30]
[351245601,1738472746727,46.42204264,0.00013484,2]
[351245602,1738472755695,189.54997392,0.00023,120]
[351245603,1738472838994,412.0,0.00023,120]
[351245858,1738472940963,721.04225818,0.00023,120]
[351245859,1738472945116,-362.46795736,0.00013484,2]
[351245863,1738473032554,-152.0,0.00014838,3]
[351245864,1738473032563,-287.67,0.00015373,2]
[351245865,1738473032573,-127.44027139,0.00015386,2]
[351245938,1738473038346,-872.55972861,0.00015386,2]
[351245939,1738473038356,-271.23,0.0001541,2]
[351245940,1738473038365,-2210.0,0.000156,2]
[351245941,1738473038375,-408.89,0.00015747,2]
[351245942,1738473038384,-150.0,0.00015842,2]
[351245943,1738473038394,-150.0,0.00015853,2]
[351245944,1738473038404,-500.0,0.0001589,2]
[351245945,1738473038414,-174.2771608,0.0001589,2]
[351245946,1738473038424,-7440.23007339,0.00016,2]
[351245947,1738473038433,-152.0,0.00016,2]
[351245948,1738473038443,-174.2771608,0.0001611,2]
[351245949,1738473038453,-150.699,0.00016112,2]
[351245950,1738473038465,-269.698,0.00016112,2]
[351245951,1738473038475,-152.0,0.00016144,4]
[351245952,1738473038484,-342.34364395,0.00016219,2]
[351245953,1738473038527,-159.65635605,0.00016219,2]
[351245954,1738473038537,-892.34364395,0.0001627,2]
[351245955,1738473038622,-484.99755518,0.0001627,2]
[351245959,1738473040430,-467.58499999,0.0001627,2]
[351245960,1738473040443,-1869.32903088,0.0001627,2]
[351245961,1738473040453,-174.2771608,0.00016329,2]
[351245962,1738473040464,-150.0,0.00016368,2]
[351245963,1738473040473,-150.0,0.00016374,2]
[351245964,1738473040484,-150.0,0.00016377,2]
[351245965,1738473040493,-150.0,0.00016385,2]
[351245966,1738473040502,-1000.0,0.00016385,2]
[351245967,1738473040512,-150.0,0.00016386,2]
[351245968,1738473040522,-1000.0,0.0001639,2]
[351245969,1738473040532,-181.61,0.00016394,2]
[351245970,1738473040542,-150.0,0.00016397,2]
[351245971,1738473040551,-150.0,0.00016397,2]
[351245972,1738473040561,-152.08595334,0.00016398,2]
[351245973,1738473040570,-5911.46156085,0.000164,2]
[351245974,1738473040580,-165.46020422,0.000164,2]
[351245975,1738473040589,-192.99277651,0.000164,2]
[351245976,1738473040599,-11755.24407314,0.000164,2]
[351246000,1738473044342,-417.92493748,0.000164,2]
[351246004,1738473046402,-302.0,0.000164,2]
[351246007,1738473153537,153.66,0.00016658,30]
[351246008,1738473223291,30015.83877309,0.0002,120]
[351246009,1738473269063,153.57,0.00010137,2]
[351246011,1738473908405,2334389.52116344,0.00012,2]
[351246014,1738473979089,153.66,0.00016658,30]
[351246137,1738474078276,1232.18908152,0.0001,2]
[351246138,1738474082054,1813204.39032252,0.0001,2]
[351246142,1738474166097,-368.0,0.00013329,2]
[351246143,1738474187037,238.67,0.00010137,2]
[351246147,1738474231594,-500.0,0.0001452,2]
[351246148,1738474231604,-158.400441,0.00015101,2]
[351246150,1738474231614,-204.07,0.00015185,2]
[351246152,1738474231623,-1000.0,0.0001522,2]
[351246153,1738474231632,-18196.50915901,0.00015303,2]
[351246154,1738474231661,-5703.49084099,0.00015303,2]
[351246155,1738474231671,-368.29,0.00015322,2]
[351246156,1738474231680,-250.0,0.00015349,2]
[351246157,1738474231690,-1971.93915901,0.000155,2]
[351246158,1738474231835,-33.06084099,0.000155,2]
[351246159,1738474231845,-330.29926294,0.00015593,2]
[351246160,1738474232014,-37.70073706,0.00015593,2]
[351246161,1738474232031,-169.8171355,0.00015671,2]
[351246162,1738474232048,-77.48213244,0.00015856,2]
[351246163,1738474232070,-80.91830856,0.00015856,2]
[351246164,1738474232085,-465.99475889,0.0001589,2]
[351246207,1738474237582,-34.00524111,0.0001589,2]
[351246208,1738474237593,-1182.64,0.0001589,7]
[351246209,1738474237602,-169.8171355,0.0001589,2]
[351246210,1738474237612,-150.0,0.0001589,2]
[351246211,1738474237622,-438.46,0.0001589,2]
[351246212,1738474237632,-333.26,0.0001589,2]
[351246213,1738474237641,-438.46,0.0001589,2]
[351246214,1738474237650,-438.46,0.0001589,2]
[351246215,1738474237660,-197.0,0.00015899,2]
[351246216,1738474237670,-51712.48774937,0.000159,2]
[351246217,1738474237681,-1383.82251538,0.000159,2]
[351246218,1738474237691,-5558.0,0.000159,3]
[351246219,1738474237700,-1383.82251526,0.00016038,2]
[351246220,1738474237710,-169.8171355,0.0001611,2]
[351246221,1738474237720,-3609.587,0.00016133,2]
[351246222,1738474237730,-150.0,0.00016133,2]
[351246223,1738474237740,-328.895,0.00016133,2]
[351246224,1738474237750,-1182.64,0.00016164,7]
[351246225,1738474237759,-174.27716079,0.00016164,2]
[351246226,1738474237768,-1383.82251526,0.00016176,2]
[351246227,1738474237778,-3812.9403034,0.0001619,4]
[351246228,1738474237788,-3083.91880697,0.000162,2]
[351246229,1738474237798,-3406.76753,0.0001624,2]
[351246230,1738474237808,-1346.4623,0.000163,2]
[351246231,1738474237817,-5561.7169,0.000163,2]
[351246232,1738474237826,-150.0,0.000163,2]
[351246233,1738474237836,-183.00164166,0.000163,2]
[351246234,1738474237844,-11836.91854976,0.000163,2]
[351246284,1738474238316,-8053.37535024,0.000163,2]
[351246286,1738474238326,-812.35051433,0.000163,2]
[351246288,1738474238337,-5558.0,0.000163,5]
[351246290,1738474238346,-150.0,0.00016301,2]
[351246292,1738474238355,-300.0,0.00016301,2]
[351246294,1738474238365,-169.8171355,0.00016301,2]
[351246296,1738474238376,-812.35051426,0.00016311,2]
[351246298,1738474238387,-1383.82251526,0.00016314,2]
[351246300,1738474238396,-812.35051426,0.00016322,2]
[351246302,1738474238406,-1123.18689027,0.00016325,2]
[351246304,1738474238415,-1104.45089237,0.00016325,2]
[351246306,1738474238425,-1053.36720132,0.00016325,2]
[351246308,1738474238435,-1122.98007559,0.00016325,2]
[351246310,1738474238444,-626.08876301,0.00016333,2]
[351246312,1738474238455,-186.26175125,0.00016333,2]
[351246314,1738474238466,-1243.20715916,0.00016338,2]
[351246319,1738474238498,-2524.52527596,0.00016338,2]
[351246321,1738474238510,-496.9786045,0.00016338,2]
[351246441,1738474239663,-175.52515863,0.000163,2]
[351246443,1738474239673,-5647.47484137,0.00016338,2]
[351246470,1738474239924,-582.74249858,0.00016338,2]
[351246472,1738474239936,-1511.58582043,0.00016338,2]
[351246474,1738474239946,-604.35724331,0.00016338,2]
[351246478,1738474239971,-500.0,0.00016338,2]
[351246487,1738474240045,-385.95255073,0.00016338,2]
[351246493,1738474240102,-504.94079845,0.00016338,2]
[351246497,1738474240129,-1600.0,0.00016338,2]
[351246500,1738474240140,-4146.04928029,0.00016338,2]
[351246502,1738474240151,-3264.00405545,0.00016338,2]
[351246556,1738474242677,-3040.65237177,0.00016338,2]
[351246557,1738474242687,-711.61778249,0.00016344,2]
[351246558,1738474242735,-100.73273177,0.00016344,2]
[351246559,1738474242745,-150.82206092,0.00016349,2]
[351246560,1738474242755,-150.0,0.00016349,2]
[351246561,1738474242768,-812.35051426,0.00016356,2]
[351246562,1738474242777,-150.0,0.00016363,2]
[351246563,1738474242787,-812.35051426,0.00016367,2]
[351246564,1738474242796,-150.0,0.00016376,2]
[351246565,1738474242806,-812.35051426,0.00016378,2]
[351246566,1738474242815,-812.35051426,0.00016389,2]
[351246567,1738474242824,-496.38061266,0.00016392,2]
[351246568,1738474242834,-150.0,0.00016393,2]
[351246569,1738474242843,-304.99499731,0.00016399,2]
[351246570,1738474242852,-1213.0,0.000164,2]
[351246571,1738474242861,-18287.06996918,0.000164,2]
[351246583,1738474245570,-887.857867,0.000164,2]
[351246585,1738474245632,-5570.45453968,0.000164,2]
[351246586,1738474245728,-7166.39638773,0.000164,2]
[351246587,1738474245740,-520.38152683,0.000164,2]
[351246588,1738474245872,-6546.4,0.000164,2]
[351246591,1738474974097,153.66,0.00016658,30]
[351246592,1738474993842,1360346.61086961,0.00023,120]
[351246600,1738475080146,164.68,0.00010137,2]
[351246603,1738475208139,-366.48,0.00013441,2]
[351246604,1738475208160,-63.90330179,0.0001452,2]
[351246629,1738475431793,-310.7802346,0.0001452,2]
[351246630,1738475431805,-125.31646361,0.0001452,2]
[351246631,1738475431815,-193.543207,0.00015283,2]
[351246632,1738475431826,-294.63,0.00015318,2]
[351246633,1738475431839,-6.65230229,0.00015335,2]
[351246634,1738475431906,-798.292855,0.00015335,2]
[351246635,1738475432022,-195.05484271,0.00015335,2]
[351246636,1738475432031,-300.0,0.00015359,2]
[351246637,1738475432041,-668.04,0.0001536,2]
[351246638,1738475432050,-230.13,0.00015383,2]
[351246639,1738475432059,-2692.0,0.000155,2]
[351246640,1738475432069,-366.48,0.00015705,2]
[351246641,1738475432079,-500.0,0.0001589,2]
[351246642,1738475432090,-1084.09,0.0001589,7]
[351246643,1738475432100,-150.0,0.00015972,2]
[351246644,1738475432110,-150.0,0.00015972,2]
[351246645,1738475432119,-252.24,0.00016153,2]
[351246646,1738475432128,-151.902,0.00016153,2]
[351246647,1738475432138,-200.0,0.00016153,2]
[351246648,1738475432147,-150.0,0.00016153,2]
[351246649,1738475432156,-150.0,0.00016153,2]
[351246650,1738475432166,-167.282,0.00016153,2]
[351246651,1738475432176,-180.302,0.00016153,2]
[351246652,1738475432186,-1084.09,0.00016164,7]
[351246654,1738475432195,-2838.97294,0.0001624,2]
[351246655,1738475432205,-162.47010286,0.000163,2]
[351246657,1738475432214,-156.85855002,0.000163,2]
[351246659,1738475432223,-162.47010285,0.00016325,2]
[351246661,1738475432232,-55555.0,0.00016338,2]
[351246662,1738475432242,-162.47010285,0.0001635,2]
[351246663,1738475432255,-150.0,0.00016359,2]
[351246665,1738475432264,-150.0,0.00016361,2]
[351246667,1738475432274,-150.0,0.00016368,2]
[351246669,1738475432283,-150.0,0.00016369,2]
[351246671,1738475432292,-150.0,0.00016369,2]
[351246673,1738475432302,-150.0,0.00016375,2]
[351246675,1738475432311,-162.47010285,0.00016375,2]
[351246677,1738475432320,-150.0,0.00016388,2]
[351246679,1738475432330,-150.0,0.00016392,2]
[351246680,1738475432343,-891.0,0.000164,2]
[351246681,1738475432353,-197315.67682593,0.000164,2]
[351246682,1738475432365,-299321.66486632,0.000164,2]
[351246683,1738475432376,-554767.13379443,0.000164,2]
[351246733,1738475439834,-2783.99989461,0.000164,2]
[351246734,1738475439847,-274.12530626,0.000164,2]
[351246735,1738475439859,-778.91006454,0.000164,2]
[351246736,1738475439869,-22079.2,0.000164,2]
[351246737,1738475440005,-53060.64879474,0.000164,2]
[351246777,1738475443034,-47.82036683,0.00016153,2]
[351246798,1738475445770,-102.64163317,0.00016153,2]
[351246799,1738475445780,-2615.51192306,0.000164,2]
[351246805,1738475445853,-1023.05,0.000164,2]
[351246812,1738475445912,-270.717332,0.000164,2]
[351246819,1738475445977,-2332.55644173,0.000164,2]
[351246821,1738475445988,-10204.81475532,0.000164,2]
[351246826,1738475790528,153.66,0.00016658,30]
[351246827,1738476189590,170.59,0.00010137,2]
[351247344,1738476632023,-349.72,0.00013436,2]
[351247345,1738476632032,-37.925,0.0001452,2]
[351247346,1738476632044,-462.075,0.0001452,2]
[351247347,1738476632053,-1989.0,0.000152,2]
[351247348,1738476632063,-814.887844,0.00015236,2]
[351247349,1738476632072,-1834.037156,0.00015248,2]
[351247350,1738476632102,-2164.0,0.00015248,2]
[351247351,1738476632113,-9935.50284495,0.00015248,2]
[351247352,1738476632122,-238.32,0.00015248,2]
[351247353,1738476632132,-1955.83,0.00015263,2]
[351247354,1738476632141,-1000.0,0.00015265,2]
[351247355,1738476632150,-2000.0,0.00015283,2]
[351247356,1738476632160,-6763.49,0.00015313,2]
[351247357,1738476632169,-5576.64,0.00015404,2]
[351247358,1738476632179,-150.0,0.00015547,2]
[351247359,1738476632188,-349.72,0.000157,2]
[351247360,1738476632198,-152.0,0.00015709,3]
[351247361,1738476632207,-500.0,0.0001589,2]
[351247362,1738476632216,-1000.0,0.0001589,7]
[351247363,1738476632226,-1000.0,0.00016,2]
[351247364,1738476632235,-2617.1870971,0.00016071,2]
[351247365,1738476632245,-217.34745773,0.0001612,2]
[351247366,1738476632254,-150.398,0.00016153,2]
[351247367,1738476632264,-800.33340782,0.00016154,2]
[351247368,1738476632273,-1000.0,0.00016164,7]
[351247369,1738476632283,-1008.0,0.000162,2]
[351247370,1738476632294,-500.0,0.0001627,2]
[351247371,1738476632307,-309.0,0.0001627,2]
[351247372,1738476632316,-150.0,0.00016308,2]
[351247373,1738476632325,-1037.44744884,0.00016325,2]
[351247374,1738476632336,-269.34142449,0.00016338,2]
[351247375,1738476632346,-945.76931498,0.00016338,2]
[351247376,1738476632356,-17629.94174606,0.00016338,2]
[351247377,1738476632367,-1094.13301427,0.00016338,2]
[351247378,1738476632424,-519.79656127,0.00016338,2]
[351247379,1738476632439,-414.87563478,0.00016338,2]
[351247380,1738476632451,-440.83359657,0.00016338,2]
[351247381,1738476632464,-475.49962009,0.00016338,2]
[351247382,1738476632475,-180.90922696,0.00016338,2]
[351247383,1738476632484,-945.76931495,0.00016345,2]
[351247384,1738476632493,-150.0,0.00016347,2]
[351247385,1738476632503,-945.76931495,0.00016352,2]
[351247386,1738476632511,-150.0,0.00016353,2]
[351247387,1738476632520,-945.76931495,0.00016359,2]
[351247388,1738476632529,-945.76931495,0.00016366,2]
[351247389,1738476632539,-151.05458167,0.00016367,2]
[351247390,1738476632548,-945.76931495,0.00016372,2]
[351247391,1738476632558,-150.0,0.00016374,2]
[351247392,1738476632567,-150.0,0.00016376,2]
[351247393,1738476632576,-150.0,0.00016376,2]
[351247394,1738476632585,-1000.0,0.00016377,2]
[351247396,1738476632594,-945.76931495,0.00016379,2]
[351247398,1738476632604,-1000.0,0.00016382,2]
[351247400,1738476632613,-945.76931495,0.00016386,2]
[351247402,1738476632622,-150.0,0.0001639,2]
[351247404,1738476632631,-945.76931495,0.00016393,2]
[351247406,1738476632640,-35905.46009064,0.000164,2]
[351247408,1738476632649,-2874.67793945,0.000164,2]
[351247412,1738476632665,-98346.2673086,0.000164,2]
[351247415,1738476632674,-217.01607079,0.000164,2]
[351247418,1738476632683,-195.18554329,0.000164,2]
[351247420,1738476632692,-2000.0,0.000164,2]
[351247422,1738476632701,-2103.29,0.000164,2]
[351247424,1738476632711,-1000.0,0.000164,2]
[351247425,1738476632720,-500.0,0.000164,2]
[351247427,1738476632730,-500.0,0.000164,2]
[351247429,1738476632739,-500.0,0.000164,2]
[351247431,1738476632749,-500.0,0.000164,2]
[351247433,1738476632759,-500.0,0.000164,2]
[351247435,1738476632768,-500.0,0.000164,2]
[351247436,1738476632777,-500.0,0.000164,2]
[351247438,1738476632786,-500.0,0.000164,2]
[351247440,1738476632795,-500.0,0.000164,2]
[351247442,1738476632804,-500.0,0.000164,2]
[351247444,1738476632813,-500.0,0.000164,2]
[351247446,1738476632822,-500.0,0.000164,2]
[351247447,1738476632831,-500.0,0.000164,2]
[351247448,1738476632841,-500.0,0.000164,2]
[351247449,1738476632851,-500.0,0.000164,2]
[351247450,1738476632860,-500.0,0.000164,2]
[351247451,1738476632869,-500.0,0.000164,2]
[351247452,1738476632880,-500.0,0.000164,2]
[351247453,1738476632889,-500.0,0.000164,2]
[351247454,1738476632898,-500.0,0.000164,2]
[351247455,1738476632907,-500.0,0.000164,2]
[351247456,1738476632916,-500.0,0.000164,2]
[351247457,1738476632926,-500.0,0.000164,2]
[351247458,1738476632936,-500.0,0.000164,2]
[351247459,1738476632946,-500.0,0.000164,2]
[351247460,1738476632955,-500.0,0.000164,2]
[351247461,1738476632964,-500.0,0.000164,2]
[351247462,1738476632974,-500.0,0.000164,2]
[351247463,1738476632983,-500.0,0.000164,2]
[351247464,1738476632993,-500.0,0.000164,2]
[351247465,1738476633002,-500.0,0.000164,2]
[351247466,1738476633012,-500.0,0.000164,2]
[351247467,1738476633021,-500.0,0.000164,2]
[351247468,1738476633031,-500.0,0.000164,2]
[351247469,1738476633040,-500.0,0.000164,2]
[351247470,1738476633050,-500.0,0.000164,2]
[351247471,1738476633059,-500.0,0.000164,2]
[351247472,1738476633069,-500.0,0.000164,2]
[351247473,1738476633082,-500.0,0.000164,2]
[351247474,1738476633103,-500.0,0.000164,2]
[351247475,1738476633114,-500.0,0.000164,2]
[351247476,1738476633124,-500.0,0.000164,2]
[351247477,1738476633135,-500.0,0.000164,2]
[351247478,1738476633145,-500.0,0.000164,2]
[351247479,1738476633160,-500.0,0.000164,2]
[351247480,1738476633171,-500.0,0.000164,2]
[351247481,1738476633181,-500.0,0.000164,2]
[351247482,1738476633191,-500.0,0.000164,2]
[351247483,1738476633200,-500.0,0.000164,2]
[351247484,1738476633209,-500.0,0.000164,2]
[351247485,1738476633219,-500.0,0.000164,2]
[351247486,1738476633228,-500.0,0.000164,2]
[351247487,1738476633237,-500.0,0.000164,2]
[351247488,1738476633247,-500.0,0.000164,2]
[351247489,1738476633255,-500.0,0.000164,2]
[351247490,1738476633265,-500.0,0.000164,2]
[351247491,1738476633275,-500.0,0.000164,2]
[351247492,1738476633285,-500.0,0.000164,2]
[351247493,1738476633294,-500.0,0.000164,2]
[351247494,1738476633304,-500.0,0.000164,2]
[351247495,1738476633318,-500.0,0.000164,2]
[351247496,1738476633327,-500.0,0.000164,2]
[351247497,1738476633336,-500.0,0.000164,2]
[351247498,1738476633346,-500.0,0.000164,2]
[351247499,1738476633356,-500.0,0.000164,2]
[351247500,1738476633366,-500.0,0.000164,2]
[351247501,1738476633375,-500.0,0.000164,2]
[351247502,1738476633384,-500.0,0.000164,2]
[351247503,1738476633394,-500.0,0.000164,2]
[351247504,1738476633403,-500.0,0.000164,2]
[351247505,1738476633412,-500.0,0.000164,2]
[351247506,1738476633421,-500.0,0.000164,2]
[351247507,1738476633431,-500.0,0.000164,2]
[351247508,1738476633439,-500.0,0.000164,2]
[351247509,1738476633449,-500.0,0.000164,2]
[351247510,1738476633458,-500.0,0.000164,2]
[351247511,1738476633467,-500.0,0.000164,2]
[351247512,1738476633477,-500.0,0.000164,2]
[351247513,1738476633487,-500.0,0.000164,2]
[351247514,1738476633496,-500.0,0.000164,2]
[351247515,1738476633505,-500.0,0.000164,2]
[351247516,1738476633515,-500.0,0.000164,2]
[351247517,1738476633524,-500.0,0.000164,2]
[351247518,1738476633535,-500.0,0.000164,2]
[351247519,1738476633544,-500.0,0.000164,2]
[351247520,1738476633553,-500.0,0.000164,2]
[351247521,1738476633563,-500.0,0.000164,2]
[351247522,1738476633573,-500.0,0.000164,2]
[351247523,1738476633582,-500.0,0.000164,2]
[351247524,1738476633591,-500.0,0.000164,2]
[351247525,1738476633600,-500.0,0.000164,2]
[351247526,1738476633610,-500.0,0.000164,2]
[351247527,1738476633619,-500.0,0.000164,2]
[351247528,1738476633628,-500.0,0.000164,2]
[351247529,1738476633637,-500.0,0.000164,2]
[351247530,1738476633647,-500.0,0.000164,2]
[351247531,1738476633657,-500.0,0.000164,2]
[351247532,1738476633667,-500.0,0.000164,2]
[351247533,1738476633676,-500.0,0.000164,2]
[351247534,1738476633685,-500.0,0.000164,2]
[351247535,1738476633695,-500.0,0.000164,2]
[351247536,1738476633704,-500.0,0.000164,2]
[351247537,1738476633713,-500.0,0.000164,2]
[351247538,1738476633723,-985.0,0.000164,2]
[351247539,1738476633733,-174.45983536,0.000164,2]
[351247540,1738476633743,-1000.0,0.000164,2]
[351247541,1738476633752,-1000.0,0.000164,2]
[351247542,1738476633761,-2636.37633,0.000164,2]
[351247543,1738476633773,-5928.32831561,0.000164,2]
[351247544,1738476633783,-658.56219289,0.000164,2]
[351247545,1738476633792,-192.99277651,0.000164,2]
[351247546,1738476633802,-945.76931495,0.000164,2]
[351247547,1738476633811,-150.0,0.00016401,2]
[351247548,1738476633820,-150.0,0.00016401,2]
[351247549,1738476633830,-181.61,0.00016406,2]
[351247550,1738476633841,-5928.32831552,0.00016411,2]
[351247551,1738476633850,-1000.0,0.00016418,2]
[351247552,1738476633860,-5928.32831552,0.00016422,2]